[Event "36th Indian-ch U13 Open 2023"]
[Site "Secunderabad"]
[Date "2023.12.04"]
[Round "1.1"]
[White "Atharv Singh Negi"]
[Black "Venkat, Raghav"]
[Result "0-1"]
[ECO "C58"]
[WhiteElo "1195"]
[BlackElo "2205"]
[Annotator "RC"]
[PlyCount "82"]
[EventDate "2023.12.04"]
[EventType "swiss"]
[EventCountry "IND"]
[SourceTitle "playchess.com"]
[Source "ChessBase"]
[SourceQuality "1"]
[TimeControl "5400+30"]

1. e4 {[%emt 0:00:03]} e5 {[%emt 0:00:13]} 2. Nf3 {[%emt 0:00:17]} Nc6 {[%emt 0:00:07]} 3. Bc4 {[%emt 0:00:17]} Nf6 {[%emt 0:00:38]} 4. Ng5 {[%emt 0:00:18]} d5 {[%emt 0:00:55]} 5. exd5 {[%emt 0:00:27]} Na5 {[%emt 0:01:44]} 6. Bb5+ {[%emt 0:00:27]} c6 {[%emt 0:01:08]} 7. dxc6 {[%emt 0:00:18]} bxc6 {[%emt 0:00:11]} 8. Qf3 {[%emt 0:00:34]} Bd7 {[%emt 0:02:15]} 9. Be2 {[%emt 0:03:53]} Be7 {[%emt 0:01:55]} 10. Nc3 {[%emt 0:01:27]} O-O {[%emt 0:00:31]} 11. h3 {[%emt 0:07:21]} Nd5 {[%emt 0:06:27]} 12. h4 {[%emt 0:06:38]} Nb4 {[%emt 0:09:59]} 13. Bd3 {[%emt 0:05:43]} f5 {[%emt 0:02:01]} 14. a3 {[%emt 0:12:22]} Nxd3+ {[%emt 0:01:52]} 15. Qxd3 {[%emt 0:00:51]} h6 {[%emt 0:05:27]} 16. b4 {[%emt 0:03:21]} hxg5 {[%emt 0:02:21]} 17. hxg5 {[%emt 0:01:00]} Bxg5 {[%emt 0:05:32]} 18. bxa5 {[%emt 0:00:50]} Be6 {[%emt 0:02:09]} 19. Qh3 {[%emt 0:01:00]} Qf6 {[%emt 0:06:24]} 20. Na4 {[%emt 0:09:59]} Bh6 {[%emt 0:06:25]} 21. Nc5 {[%emt 0:02:32]} e4 {[%emt 0:03:56]} 22. Rb1 {[%emt 0:00:51]} Rab8 {[%emt 0:03:16]} 23. Nb7 {[%emt 0:01:06]} f4 {[%emt 0:04:58]} 24. Qh5 {[%emt 0:03:31]} e3 {[%emt 0:04:38]} 25. dxe3 {[%emt 0:07:32]} fxe3 {[%emt 0:01:00]} 26. Bxe3 {[%emt 0:04:51]} Qc3+ {[%emt 0:03:59]} 27. Kd1 {[%emt 0:00:33]} Bf5 {[%emt 0:09:22]} 28. Qe2 {[%emt 0:03:51]} Rfd8+ {[%emt 0:01:36]} 29. Kc1 {[%emt 0:00:20]} Qxa3+ {[%emt 0:00:10]} 30. Rb2 {[%emt 0:00:13]} Rxb7 {[%emt 0:01:30]} 31. Qc4+ {[%emt 0:01:02]} Rd5 {[%emt 0:01:07]} 32. Qa2 {[%emt 0:01:07]} Bxe3+ {[%emt 0:00:54]} 33. fxe3 {[%emt 0:00:07]} Qxe3+ {[%emt 0:01:47]} 34. Kb1 {[%emt 0:00:18]} Rxb2+ {[%emt 0:01:05]} 35. Kxb2 {[%emt 0:00:28]} Qd4+ {[%emt 0:00:10]} 36. Kc1 {[%emt 0:00:19]} Qd2+ {[%emt 0:00:08]} 37. Kb1 {[%emt 0:00:07]} Bxc2+ {[%emt 0:00:21]} 38. Qxc2 {[%emt 0:00:07]} Rb5+ {[%emt 0:00:12]} 39. Ka1 {[%emt 0:23:59]} Qxc2 {[%emt 0:00:11]} 40. Rh8+ {[%emt 0:00:00]} Kxh8 {[%emt 0:00:11]} 41. a6 {[%emt 0:00:00]} Qb2# {[%emt 0:12:15]} 0-1

[Event "36th Indian-ch U13 Open 2023"]
[Site "Secunderabad"]
[Date "2023.12.04"]
[Round "1.2"]
[White "Vivaan Vijay Saraogi"]
[Black "Meetansh Dixit"]
[Result "1/2-1/2"]
[ECO "B33"]
[WhiteElo "1982"]
[BlackElo "1194"]
[Annotator "NA RC"]
[PlyCount "118"]
[EventDate "2023.12.04"]
[EventType "swiss"]
[EventCountry "IND"]
[SourceTitle "playchess.com"]
[Source "ChessBase"]
[SourceQuality "1"]
[TimeControl "5400+30"]

1. e4 {[%emt 0:00:03]} c5 {[%emt 0:00:09]} 2. Nf3 {[%emt 0:00:04]} Nc6 {[%emt 0:00:09]} 3. d4 {[%emt 0:00:07]} cxd4 {[%emt 0:00:06]} 4. Nxd4 {[%emt 0:00:02]} Nf6 {[%emt 0:00:11]} 5. Nc3 {[%emt 0:00:04]} e5 {[%emt 0:00:10]} 6. Ndb5 {[%emt 0:00:05]} d6 {[%emt 0:00:13]} 7. Bg5 {[%emt 0:00:06]} a6 {[%emt 0:00:09]} 8. Na3 {[%emt 0:00:02]} b5 {[%emt 0:00:10]} 9. Nd5 {[%emt 0:00:18]} Be7 {[%emt 0:00:14]} 10. Bxf6 {[%emt 0:00:03]} Bxf6 {[%emt 0:00:10]} 11. c3 {[%emt 0:00:06]} O-O {[%emt 0:00:24]} 12. Nc2 {[%emt 0:00:04]} Bg5 {[%emt 0:00:23]} 13. a4 {[%emt 0:00:16]} bxa4 {[%emt 0:04:24]} 14. Rxa4 {[%emt 0:00:02]} Bb7 {[%emt 0:14:39]} 15. Bc4 {[%emt 0:00:49]} Kh8 {[%emt 0:08:38]} 16. h4 {[%emt 0:02:47]} Bh6 {[%emt 0:01:33]} 17. Nce3 {[%emt 0:00:12]} Bxe3 {[%emt 0:04:24]} 18. Nxe3 {[%emt 0:00:11]} Ne7 {[%emt 0:01:15]} 19. Qd3 {[%emt 0:14:40]} f5 {[%emt 0:08:03]} 20. exf5 {[%emt 0:11:44]} Qd7 {[%emt 0:01:00]} 21. Rb4 {[%emt 0:01:23]} Qc6 {[%emt 0:13:13]} 22. Be6 {[%emt 0:03:37]} d5 {[%emt 0:06:47]} 23. h5 {[%emt 0:30:30]} Rad8 {[%emt 0:01:20]} 24. Rg4 {[%emt 0:03:26]} Ng8 {[%emt 0:02:25]} 25. h6 {[%emt 0:04:51]} Nxh6 {[%emt 0:01:19]} 26. Qd2 {[%emt 0:14:29]} d4 {[%emt 0:04:13]} 27. cxd4 {[%emt 0:03:46]} Nxg4 {[%emt 0:01:05]} 28. d5 {[%emt 0:09:36]} Qa4 {[%emt 0:00:29]} 29. Rh4 {[%emt 0:01:05]} Qa1+ {[%emt 0:00:48]} 30. Nd1 {[%emt 0:00:02]} Nf6 {[%emt 0:00:23]} 31. d6 {[%emt 0:00:58]} e4 {[%emt 0:00:51]} 32. Qb4 {[%emt 0:00:30]} Bc6 {[%emt 0:02:15]} 33. Bb3 {[%emt 0:00:20]} Qc1 {[%emt 0:00:40]} 34. Rh3 {[%emt 0:00:40]} Qf4 {[%emt 0:00:57]} 35. Ne3 {[%emt 0:00:27]} Qxd6 {[%emt 0:00:18]} 36. Qc3 {[%emt 0:00:10]} Bb5 {[%emt 0:00:30]} 37. Be6 {[%emt 0:00:50]} Qc6 {[%emt 0:00:41]} 38. Qxc6 {[%emt 0:00:31]} Bxc6 {[%emt 0:00:09]} 39. Nc4 {[%emt 0:00:01]} Bd5 {[%emt 0:01:02]} 40. Ne5 {[%emt 0:00:02]} Bxe6 {[%emt 0:00:24]} 41. fxe6 {[%emt 0:00:02]} Rde8 {[%emt 0:00:31]} 42. e7 {[%emt 0:00:15]} Rxe7 {[%emt 0:01:00]} 43. Ng6+ {[%emt 0:00:01]} Kg8 {[%emt 0:00:11]} 44. Nxe7+ {[%emt 0:00:04]} Kf7 {[%emt 0:00:12]} 45. Nf5 {[%emt 0:00:40]} Rb8 {[%emt 0:00:54]} 46. Ra3 {[%emt 0:00:38]} Rxb2 {[%emt 0:01:08]} 47. Rxa6 {[%emt 0:00:02]} Kg6 {[%emt 0:23:51]} 48. Ne3 {[%emt 0:01:54]} Rb5 {[%emt 0:00:00]} 49. Ra7 {[%emt 0:00:29]} Nd5 {[%emt 0:00:00]} 50. Nxd5 {[%emt 0:01:24]} Rxd5 {[%emt 0:00:00]} 51. Re7 {[%emt 0:00:02]} Rg5 {[%emt 0:00:00]} 52. g3 {[%emt 0:00:42]} Rg4 {[%emt 0:00:00]} 53. Ke2 {[%emt 0:00:10]} Kf6 {[%emt 0:00:00]} 54. Ra7 {[%emt 0:00:20]} h5 {[%emt 0:00:00]} 55. Ra6+ {[%emt 0:00:23]} Kg5 {[%emt 0:00:00]} 56. Ra5+ {[%emt 0:00:01]} Kh6 {[%emt 0:00:00]} 57. Ke3 {[%emt 0:00:19]} h4 {[%emt 0:00:00]} 58. gxh4 {[%emt 0:00:15]} Rxh4 {[%emt 0:00:00]} 59. Re5 {[%emt 0:00:11]} g5 {[%emt 0:00:00]} 1/2-1/2

[Event "36th Indian-ch U13 Open 2023"]
[Site "Secunderabad"]
[Date "2023.12.04"]
[Round "1.3"]
[White "Devansh Gupta"]
[Black "Aakash G"]
[Result "0-1"]
[ECO "C01"]
[WhiteElo "1293"]
[BlackElo "1935"]
[Annotator "NA RC"]
[PlyCount "72"]
[EventDate "2023.12.04"]
[EventType "swiss"]
[EventCountry "IND"]
[SourceTitle "playchess.com"]
[Source "ChessBase"]
[SourceQuality "1"]
[TimeControl "5400+30"]

1. e4 {[%emt 0:00:06]} e6 {[%emt 0:00:10]} 2. d4 {[%emt 0:00:35]} d5 {[%emt 0:00:07]} 3. exd5 {[%emt 0:00:23]} exd5 {[%emt 0:00:07]} 4. Bd3 {[%emt 0:00:29]} c5 {[%emt 0:00:17]} 5. Ne2 {[%emt 0:00:45]} c4 {[%emt 0:00:07]} 6. Nbc3 {[%emt 0:00:57]} cxd3 {[%emt 0:00:07]} 7. Qxd3 {[%emt 0:00:08]} Nc6 {[%emt 0:00:36]} 8. a3 {[%emt 0:00:12]} Nf6 {[%emt 0:00:54]} 9. Bg5 {[%emt 0:00:46]} Be7 {[%emt 0:00:10]} 10. O-O-O {[%emt 0:00:23]} O-O {[%emt 0:00:13]} 11. h4 {[%emt 0:00:21]} h6 {[%emt 0:01:28]} 12. Qg3 {[%emt 0:05:09]} Nh5 {[%emt 1:32:14]} 13. Qd3 {[%emt 0:02:04]} Bxg5+ {[%emt 0:00:00]} 14. hxg5 {[%emt 0:00:04]} Qxg5+ {[%emt 0:00:00]} 15. Kb1 {[%emt 0:01:01]} Bf5 {[%emt 0:00:00]} 16. Qf3 {[%emt 0:00:44]} Bg4 {[%emt 0:00:00]} 17. Qd3 {[%emt 0:00:45]} Bxe2 {[%emt 0:02:30]} 18. Qxe2 {[%emt 0:00:12]} Nf4 {[%emt 0:00:00]} 19. Qf3 {[%emt 0:00:32]} Rad8 {[%emt 0:00:00]} 20. g3 {[%emt 0:00:14]} Ne6 {[%emt 0:00:00]} 21. Ne2 {[%emt 0:00:48]} Qg6 {[%emt 0:00:00]} 22. Qc3 {[%emt 0:00:43]} Rc8 {[%emt 0:00:00]} 23. Qb3 {[%emt 0:00:12]} Na5 {[%emt 0:00:00]} 24. Qd3 {[%emt 0:00:20]} Qxd3 {[%emt 0:00:00]} 25. Rxd3 {[%emt 0:00:02]} Ng5 {[%emt 0:00:00]} 26. Nc3 {[%emt 0:00:26]} Ne4 {[%emt 0:00:00]} 27. Nxe4 {[%emt 0:00:05]} dxe4 {[%emt 0:00:00]} 28. Re3 {[%emt 0:00:02]} Nc4 {[%emt 0:00:00]} 29. Re2 {[%emt 1:26:32]} f5 {[%emt 0:00:00]} 30. Rd1 {[%emt 0:00:00]} b5 {[%emt 0:00:00]} 31. g4 {[%emt 0:00:00]} fxg4 {[%emt 0:00:00]} 32. Rxe4 {[%emt 0:00:00]} Rxf2 {[%emt 0:00:00]} 33. Re7 {[%emt 0:00:00]} Nd2+ {[%emt 0:00:00]} 34. Ka1 {[%emt 0:00:00]} Rxc2 {[%emt 0:00:00]} 35. Rg1 {[%emt 0:03:00]} Nb3+ {[%emt 0:00:00]} 36. Ka2 {[%emt 0:00:00]} Rxb2# {[%emt 0:00:00]} 0-1

[Event "36th Indian-ch U13 Open 2023"]
[Site "Secunderabad"]
[Date "2023.12.04"]
[Round "1.4"]
[White "Kolla Bhaavan"]
[Black "Avnish Borker"]
[Result "1-0"]
[ECO "B12"]
[WhiteElo "1917"]
[BlackElo "1192"]
[Annotator "NA RC"]
[PlyCount "53"]
[EventDate "2023.12.04"]
[EventType "swiss"]
[EventCountry "IND"]
[SourceTitle "playchess.com"]
[Source "ChessBase"]
[SourceQuality "1"]
[TimeControl "5400+30"]

1. e4 {[%emt 0:00:16]} c6 {[%emt 0:00:19]} 2. d4 {[%emt 0:00:47]} d5 {[%emt 0:00:28]} 3. Bd3 {[%emt 0:01:53]} h6 {[%emt 0:01:15]} 4. e5 {[%emt 0:00:29]} e6 {[%emt 0:01:44]} 5. Be3 {[%emt 0:00:42]} Qb6 {[%emt 0:00:40]} 6. Qc1 {[%emt 0:01:16]} c5 {[%emt 0:00:12]} 7. Nf3 {[%emt 0:02:50]} Nc6 {[%emt 0:00:25]} 8. c3 {[%emt 0:01:04]} Bd7 {[%emt 0:02:08]} 9. O-O {[%emt 0:03:29]} cxd4 {[%emt 0:04:12]} 10. cxd4 {[%emt 0:04:46]} Rc8 {[%emt 0:00:12]} 11. Nc3 {[%emt 0:00:36]} Bb4 {[%emt 0:03:14]} 12. Qd1 {[%emt 0:04:06]} Nge7 {[%emt 0:00:39]} 13. Ne2 {[%emt 0:04:06]} Qd8 {[%emt 0:03:40]} 14. a3 {[%emt 0:03:23]} Ba5 {[%emt 0:00:14]} 15. b4 {[%emt 0:00:29]} Bb6 {[%emt 0:00:16]} 16. Ne1 {[%emt 0:01:07]} O-O {[%emt 0:00:28]} 17. Qd2 {[%emt 0:07:31]} f6 {[%emt 0:04:29]} 18. exf6 {[%emt 0:12:38]} Rxf6 {[%emt 0:01:27]} 19. Bb1 {[%emt 0:01:37]} Nf5 {[%emt 0:01:00]} 20. Nf3 {[%emt 0:02:31]} Nd6 {[%emt 0:01:13]} 21. Ng3 {[%emt 0:01:02]} Nc4 {[%emt 0:00:11]} 22. Qd3 {[%emt 0:00:35]} a5 {[%emt 0:03:10]} 23. Qh7+ {[%emt 0:03:04]} Kf8 {[%emt 0:00:28]} 24. Nh5 {[%emt 0:01:15]} Rxf3 {[%emt 0:04:02]} 25. Qxg7+ {[%emt 0:00:33]} Ke8 {[%emt 0:00:12]} 26. Bg6+ {[%emt 0:00:08]} Rf7 {[%emt 0:00:12]} 27. Qxf7# {[%emt 0:00:18]} 1-0

[Event "36th Indian-ch U13 Open 2023"]
[Site "Secunderabad"]
[Date "2023.12.04"]
[Round "1.5"]
[White "Tathagath Nayak"]
[Black "Gaikwad Manas"]
[Result "0-1"]
[ECO "B50"]
[WhiteElo "1192"]
[BlackElo "1916"]
[Annotator "NA RC"]
[PlyCount "68"]
[EventDate "2023.12.04"]
[EventType "swiss"]
[EventCountry "IND"]
[SourceTitle "playchess.com"]
[Source "ChessBase"]
[SourceQuality "1"]
[TimeControl "5400+30"]

1. e4 {[%emt 0:00:02]} c5 {[%emt 0:00:23]} 2. Nf3 {[%emt 0:00:21]} d6 {[%emt 0:00:24]} 3. b4 {[%emt 0:00:22]} cxb4 {[%emt 0:00:47]} 4. d4 {[%emt 0:00:49]} Nf6 {[%emt 0:03:06]} 5. Bd3 {[%emt 0:01:01]} e6 {[%emt 0:05:21]} 6. a3 {[%emt 0:01:37]} Nc6 {[%emt 0:07:50]} 7. c3 {[%emt 0:07:35]} bxc3 {[%emt 0:02:30]} 8. Nxc3 {[%emt 0:01:33]} Be7 {[%emt 0:00:17]} 9. Qc2 {[%emt 0:04:36]} h6 {[%emt 0:06:48]} 10. Rb1 {[%emt 0:04:03]} O-O {[%emt 0:02:41]} 11. O-O {[%emt 0:02:25]} d5 {[%emt 0:08:33]} 12. e5 {[%emt 0:02:14]} Nd7 {[%emt 0:00:05]} 13. Ra1 {[%emt 1:10:22]} f5 {[%emt 0:06:48]} 14. Ne2 {[%emt 0:00:00]} Nb6 {[%emt 0:01:08]} 15. Nf4 {[%emt 0:00:00]} Qe8 {[%emt 0:01:41]} 16. h4 {[%emt 0:00:00]} g5 {[%emt 0:02:07]} 17. hxg5 {[%emt 0:00:00]} hxg5 {[%emt 0:00:13]} 18. Ne2 {[%emt 0:00:00]} Qg6 {[%emt 0:00:42]} 19. g4 {[%emt 0:00:00]} Qg7 {[%emt 0:03:44]} 20. Nh2 {[%emt 0:00:00]} Bd7 {[%emt 0:04:05]} 21. Kg2 {[%emt 0:00:00]} Rac8 {[%emt 0:01:41]} 22. Qa2 {[%emt 0:00:00]} Be8 {[%emt 0:09:16]} 23. Rg1 {[%emt 0:00:00]} f4 {[%emt 0:01:24]} 24. Nf3 {[%emt 0:00:00]} Bg6 {[%emt 0:00:16]} 25. Bxg6 {[%emt 0:00:00]} Qxg6 {[%emt 0:00:01]} 26. Bd2 {[%emt 0:00:00]} Nc4 {[%emt 0:01:29]} 27. Qb3 {[%emt 0:00:26]} Qe4 {[%emt 0:10:50]} 28. Qb1 {[%emt 0:04:23]} Qxf3+ {[%emt 0:00:37]} 29. Kxf3 {[%emt 0:00:08]} Nxd2+ {[%emt 0:00:03]} 30. Kg2 {[%emt 0:00:12]} Nxb1 {[%emt 0:00:02]} 31. Raxb1 {[%emt 0:00:45]} f3+ {[%emt 0:00:05]} 32. Kf1 {[%emt 0:00:06]} fxe2+ {[%emt 0:00:03]} 33. Kxe2 {[%emt 0:00:08]} b6 {[%emt 0:00:04]} 34. Kd3 {[%emt 0:01:02]} Rxf2 {[%emt 0:00:06]} 0-1

[Event "36th Indian-ch U13 Open 2023"]
[Site "Secunderabad"]
[Date "2023.12.04"]
[Round "1.6"]
[White "Sriram Adarsh Uppala"]
[Black "Aerramalla Bava Samavart"]
[Result "1-0"]
[ECO "D02"]
[WhiteElo "1902"]
[BlackElo "1190"]
[Annotator "NA RC"]
[PlyCount "61"]
[EventDate "2023.12.04"]
[EventType "swiss"]
[EventCountry "IND"]
[SourceTitle "playchess.com"]
[Source "ChessBase"]
[SourceQuality "1"]
[TimeControl "5400+30"]

1. d4 {[%emt 0:00:03]} d5 {[%emt 0:00:11]} 2. Bf4 {[%emt 0:00:22]} Nf6 {[%emt 0:00:17]} 3. e3 {[%emt 0:00:16]} Bf5 {[%emt 0:00:15]} 4. c4 {[%emt 0:00:27]} e6 {[%emt 0:00:23]} 5. Nc3 {[%emt 0:00:13]} c6 {[%emt 0:00:26]} 6. Qb3 {[%emt 0:00:20]} b6 {[%emt 0:00:32]} 7. Nf3 {[%emt 0:01:38]} Bd6 {[%emt 0:00:28]} 8. Be5 {[%emt 0:00:48]} Bg4 {[%emt 0:02:01]} 9. Bxd6 {[%emt 0:00:24]} Bxf3 {[%emt 0:00:29]} 10. Bxb8 {[%emt 0:00:13]} dxc4 {[%emt 0:00:53]} 11. Bxc4 {[%emt 0:00:35]} Bxg2 {[%emt 0:00:20]} 12. Rg1 {[%emt 0:00:07]} Rxb8 {[%emt 0:01:39]} 13. Rxg2 {[%emt 0:00:08]} g6 {[%emt 0:00:05]} 14. Be2 {[%emt 0:00:29]} b5 {[%emt 0:07:08]} 15. Bf3 {[%emt 0:00:10]} Qd7 {[%emt 0:10:35]} 16. Ne4 {[%emt 0:00:24]} Nxe4 {[%emt 0:07:50]} 17. Bxe4 {[%emt 0:00:04]} O-O {[%emt 0:04:55]} 18. Rc1 {[%emt 0:00:11]} Rb6 {[%emt 0:06:23]} 19. h4 {[%emt 0:00:10]} Qd6 {[%emt 0:06:28]} 20. h5 {[%emt 0:00:47]} Rd8 {[%emt 0:01:52]} 21. hxg6 {[%emt 0:00:09]} hxg6 {[%emt 0:00:31]} 22. Rc5 {[%emt 0:00:07]} Kg7 {[%emt 0:02:10]} 23. Bxg6 {[%emt 0:00:48]} fxg6 {[%emt 0:01:08]} 24. Rcg5 {[%emt 0:00:07]} e5 {[%emt 0:00:24]} 25. Rxg6+ {[%emt 0:00:08]} Qxg6 {[%emt 0:00:27]} 26. Rxg6+ {[%emt 0:00:06]} Kxg6 {[%emt 0:00:16]} 27. Qe6+ {[%emt 0:00:05]} Kh5 {[%emt 0:02:18]} 28. Qf5+ {[%emt 0:00:09]} Kh4 {[%emt 0:00:27]} 29. Qf6+ {[%emt 0:00:08]} Kh3 {[%emt 0:00:07]} 30. Qxd8 {[%emt 0:00:07]} exd4 {[%emt 0:00:09]} 31. exd4 {[%emt 0:00:14]} 1-0

[Event "36th Indian-ch U13 Open 2023"]
[Site "Secunderabad"]
[Date "2023.12.04"]
[Round "1.7"]
[White "Anay Saraf"]
[Black "Sharnarthi Viresh"]
[Result "0-1"]
[ECO "E91"]
[WhiteElo "1190"]
[BlackElo "1850"]
[Annotator "NA RC"]
[PlyCount "70"]
[EventDate "2023.12.04"]
[EventType "swiss"]
[EventCountry "IND"]
[SourceTitle "playchess.com"]
[Source "ChessBase"]
[SourceQuality "1"]
[TimeControl "5400+30"]

1. d4 {[%emt 0:00:01]} Nf6 {[%emt 0:00:09]} 2. c4 {[%emt 0:00:03]} g6 {[%emt 0:00:04]} 3. Nc3 {[%emt 0:00:03]} Bg7 {[%emt 0:00:05]} 4. e4 {[%emt 0:00:03]} d6 {[%emt 0:00:03]} 5. Nf3 {[%emt 0:00:03]} O-O {[%emt 0:00:06]} 6. Be2 {[%emt 0:00:03]} Bg4 {[%emt 0:00:05]} 7. O-O {[%emt 0:00:23]} Nc6 {[%emt 0:00:34]} 8. Be3 {[%emt 0:00:44]} Nd7 {[%emt 0:00:20]} 9. d5 {[%emt 0:01:07]} Bxf3 {[%emt 0:00:06]} 10. Bxf3 {[%emt 0:00:30]} Na5 {[%emt 0:00:08]} 11. Be2 {[%emt 0:00:56]} c5 {[%emt 0:00:08]} 12. Qc2 {[%emt 0:04:44]} e6 {[%emt 0:06:05]} 13. Rab1 {[%emt 0:01:40]} exd5 {[%emt 0:02:19]} 14. exd5 {[%emt 0:01:20]} b6 {[%emt 0:03:17]} 15. a3 {[%emt 0:03:07]} Ne5 {[%emt 0:02:51]} 16. Ne4 {[%emt 0:00:53]} Re8 {[%emt 0:09:25]} 17. b4 {[%emt 0:01:04]} cxb4 {[%emt 0:00:02]} 18. axb4 {[%emt 0:00:15]} Naxc4 {[%emt 0:00:39]} 19. Bxc4 {[%emt 0:00:16]} Rc8 {[%emt 0:00:04]} 20. Nd2 {[%emt 0:00:28]} Nxc4 {[%emt 0:03:56]} 21. Nxc4 {[%emt 0:00:40]} b5 {[%emt 0:00:04]} 22. Bxa7 {[%emt 0:00:55]} Rxc4 {[%emt 0:00:57]} 23. Qd3 {[%emt 0:02:56]} f5 {[%emt 0:01:05]} 24. Rfc1 {[%emt 0:02:12]} Qd7 {[%emt 0:09:48]} 25. Bb6 {[%emt 0:05:54]} Qb7 {[%emt 0:01:29]} 26. Ba5 {[%emt 0:05:52]} Rd4 {[%emt 0:00:53]} 27. Rc7 {[%emt 0:01:16]} Qxd5 {[%emt 0:00:53]} 28. Qc2 {[%emt 0:00:57]} Rd2 {[%emt 0:03:23]} 29. Qc1 {[%emt 0:03:13]} Bb2 {[%emt 0:00:07]} 30. Qf1 {[%emt 0:03:29]} Rxf2 {[%emt 0:00:04]} 31. Kxf2 {[%emt 0:05:58]} Bd4+ {[%emt 0:00:07]} 32. Kg3 {[%emt 0:01:27]} Re3+ {[%emt 0:00:06]} 33. Kf4 {[%emt 0:01:55]} Qe4+ {[%emt 0:00:13]} 34. Kg5 {[%emt 0:00:18]} Qg4+ {[%emt 0:00:02]} 35. Kh6 {[%emt 0:00:05]} Qh4# {[%emt 0:00:06]} 0-1

[Event "36th Indian-ch U13 Open 2023"]
[Site "Secunderabad"]
[Date "2023.12.04"]
[Round "1.8"]
[White "Reyan"]
[Black "Daksh Kurma"]
[Result "1-0"]
[ECO "B27"]
[WhiteElo "1842"]
[BlackElo "1189"]
[Annotator "NA RC"]
[PlyCount "73"]
[EventDate "2023.12.04"]
[EventType "swiss"]
[EventCountry "IND"]
[SourceTitle "playchess.com"]
[Source "ChessBase"]
[SourceQuality "1"]
[TimeControl "5400+30"]

1. e4 {[%emt 0:00:02]} c5 {[%emt 0:01:27]} 2. Nc3 {[%emt 0:00:07]} g6 {[%emt 0:00:08]} 3. d4 {[%emt 0:00:13]} cxd4 {[%emt 0:00:34]} 4. Qxd4 {[%emt 0:00:08]} Nf6 {[%emt 0:00:34]} 5. Nf3 {[%emt 0:00:05]} Nc6 {[%emt 0:01:03]} 6. Qa4 {[%emt 0:00:09]} d6 {[%emt 0:01:35]} 7. e5 {[%emt 0:00:17]} dxe5 {[%emt 0:00:08]} 8. Nxe5 {[%emt 0:00:07]} Bd7 {[%emt 0:00:08]} 9. Nxd7 {[%emt 0:00:07]} Qxd7 {[%emt 0:00:04]} 10. Be3 {[%emt 0:00:27]} Nd5 {[%emt 0:06:19]} 11. Nxd5 {[%emt 0:15:22]} Qxd5 {[%emt 0:00:44]} 12. c3 {[%emt 0:00:06]} O-O-O {[%emt 0:01:37]} 13. Rd1 {[%emt 0:02:26]} Qxd1+ {[%emt 0:02:18]} 14. Qxd1 {[%emt 0:00:05]} Rxd1+ {[%emt 0:00:09]} 15. Kxd1 {[%emt 0:00:03]} Bg7 {[%emt 0:00:10]} 16. Bc4 {[%emt 0:01:00]} Rd8+ {[%emt 0:01:28]} 17. Kc2 {[%emt 0:00:12]} e6 {[%emt 0:00:42]} 18. b4 {[%emt 0:03:40]} Kc7 {[%emt 0:01:26]} 19. Re1 {[%emt 0:02:50]} b6 {[%emt 0:03:58]} 20. a4 {[%emt 0:04:11]} a5 {[%emt 0:07:04]} 21. b5 {[%emt 0:00:41]} Ne5 {[%emt 0:01:01]} 22. Bf4 {[%emt 0:02:22]} Kd6 {[%emt 0:00:32]} 23. Ba2 {[%emt 0:07:20]} Rc8 {[%emt 0:01:44]} 24. Bg3 {[%emt 0:01:52]} Rc5 {[%emt 0:01:32]} 25. f3 {[%emt 0:04:14]} Ke7 {[%emt 0:01:05]} 26. Bf2 {[%emt 0:00:35]} Rc7 {[%emt 0:13:41]} 27. Bxb6 {[%emt 0:08:47]} Rxc3+ {[%emt 0:01:06]} 28. Kxc3 {[%emt 0:00:04]} Nxf3+ {[%emt 0:00:15]} 29. Kc4 {[%emt 0:00:59]} Nxe1 {[%emt 0:52:28]} 30. Bxa5 {[%emt 0:46:59]} Nxg2 {[%emt 0:00:00]} 31. Kc5 {[%emt 0:00:00]} Ne3 {[%emt 0:00:00]} 32. Kc6 {[%emt 0:00:00]} Ng4 {[%emt 0:00:00]} 33. Bc7 {[%emt 0:00:00]} Ne5+ {[%emt 0:00:00]} 34. Bxe5 {[%emt 0:00:00]} Bxe5 {[%emt 0:00:00]} 35. a5 {[%emt 0:00:00]} f5 {[%emt 0:00:00]} 36. a6 {[%emt 0:00:00]} Bb8 {[%emt 0:00:00]} 37. b6 {[%emt 0:00:00]} 1-0

[Event "36th Indian-ch U13 Open 2023"]
[Site "Secunderabad"]
[Date "2023.12.04"]
[Round "1.9"]
[White "Kedarnath U"]
[Black "Mrinmoy Rajkhowa"]
[Result "0-1"]
[ECO "B90"]
[WhiteElo "1189"]
[BlackElo "1840"]
[Annotator "NA RC"]
[PlyCount "66"]
[EventDate "2023.12.04"]
[EventType "swiss"]
[EventCountry "IND"]
[SourceTitle "playchess.com"]
[Source "ChessBase"]
[SourceQuality "1"]
[TimeControl "5400+30"]

1. e4 {[%emt 0:00:03]} c5 {[%emt 0:00:05]} 2. Nf3 {[%emt 0:00:05]} d6 {[%emt 0:00:04]} 3. d4 {[%emt 0:00:07]} cxd4 {[%emt 0:00:06]} 4. Nxd4 {[%emt 0:00:09]} Nf6 {[%emt 0:00:03]} 5. Nc3 {[%emt 0:00:11]} a6 {[%emt 0:00:03]} 6. f3 {[%emt 0:00:09]} e5 {[%emt 0:00:05]} 7. Nb3 {[%emt 0:00:08]} Be6 {[%emt 0:00:04]} 8. Be3 {[%emt 0:00:40]} h5 {[%emt 0:00:42]} 9. Qd2 {[%emt 0:00:17]} Nbd7 {[%emt 0:00:04]} 10. O-O-O {[%emt 0:00:22]} Rc8 {[%emt 0:00:17]} 11. Kb1 {[%emt 0:01:32]} Be7 {[%emt 0:04:07]} 12. f4 {[%emt 0:02:47]} b5 {[%emt 0:05:51]} 13. f5 {[%emt 0:09:33]} Bc4 {[%emt 0:03:40]} 14. Bxc4 {[%emt 0:11:39]} bxc4 {[%emt 0:16:33]} 15. Nc1 {[%emt 0:00:25]} Qc7 {[%emt 0:04:11]} 16. Bf2 {[%emt 0:07:16]} Rb8 {[%emt 0:04:41]} 17. Rhe1 {[%emt 0:02:51]} O-O {[%emt 0:08:07]} 18. h3 {[%emt 0:03:01]} Nc5 {[%emt 0:03:18]} 19. Bxc5 {[%emt 0:01:48]} Qxc5 {[%emt 0:00:11]} 20. Nd5 {[%emt 0:01:50]} Nxd5 {[%emt 0:03:49]} 21. Qxd5 {[%emt 0:00:53]} Qa3 {[%emt 0:04:42]} 22. b3 {[%emt 0:00:42]} c3 {[%emt 0:01:41]} 23. Nd3 {[%emt 0:00:08]} Rfc8 {[%emt 0:02:45]} 24. b4 {[%emt 0:02:22]} Rxb4+ {[%emt 0:00:29]} 25. Ka1 {[%emt 0:00:20]} Rb5 {[%emt 0:01:03]} 26. Rb1 {[%emt 0:01:42]} Rxd5 {[%emt 0:00:20]} 27. exd5 {[%emt 0:00:12]} Rc4 {[%emt 0:01:08]} 28. Rb3 {[%emt 0:00:29]} Qa5 {[%emt 0:00:12]} 29. Rb8+ {[%emt 0:01:22]} Kh7 {[%emt 0:00:15]} 30. Rb7 {[%emt 0:00:53]} Ra4 {[%emt 0:00:21]} 31. Nc1 {[%emt 0:00:24]} Bg5 {[%emt 0:00:06]} 32. Nb3 {[%emt 0:00:35]} Rxa2+ {[%emt 0:00:07]} 33. Kb1 {[%emt 0:00:13]} Rb2# {[%emt 0:00:04]} 0-1